lending/lending_fUSD_20240603
["ID","MTS","AMOUNT","RATE_DAILY","PERIOD"]
[328443774,1717396233401,-7045.35204464,0.00024798,2]
[328443775,1717396233410,-7045.35204464,0.00024798,2]
[328443776,1717396233419,-1887.21020361,0.00024799,2]
[328443777,1717396233428,-1887.2102036,0.00024799,2]
[328443778,1717396233438,-1887.2102036,0.00024799,2]
[328443779,1717396233449,-1275.18335769,0.00025,2]
[328443780,1717396233458,-929.09920929,0.00025,2]
[328443781,1717396233467,-224.88847247,0.00025,2]
[328443782,1717396233477,-1250.0,0.00025,2]
[328443783,1717396233486,-3891.19186134,0.00025,2]
[328443784,1717396233496,-325.53994662,0.00025,2]
[328443785,1717396233505,-493.84917495,0.00025206,2]
[328443786,1717396233515,-646.19,0.00025337,2]
[328443787,1717396233524,-1887.2102036,0.00025532,2]
[328443788,1717396233533,-7045.35204464,0.00025532,2]
[328443789,1717396233543,-589.49,0.00025661,2]
[328443790,1717396233553,-1939.11381,0.0002658,2]
[328443791,1717396233562,-2053.7452558,0.000266,2]
[328443792,1717396233572,-800.0,0.00026603,2]
[328443793,1717396233581,-227.57960438,0.00026637,2]
[328443794,1717396233592,-5285.56169332,0.00026637,2]
[328443795,1717396233601,-162.13227317,0.0002664,2]
[328443796,1717396233610,-194.1,0.00026763,2]
[328443797,1717396233620,-493.84917495,0.00026805,2]
[328443798,1717396233630,-500.0,0.00026809,2]
[328443799,1717396233639,-538.11792105,0.00026809,2]
[328443800,1717396233648,-472.94885985,0.00026809,2]
[328443801,1717396233657,-306.1348514,0.00026809,2]
[328443802,1717396233666,-500.0,0.00026809,2]
[328443803,1717396233675,-500.0,0.00026809,2]
[328443804,1717396233684,-500.0,0.00026809,2]
[328443805,1717396233693,-500.0,0.00026809,2]
[328443806,1717396233705,-500.0,0.00026809,2]
[328443807,1717396233714,-500.0,0.00026809,2]
[328443808,1717396233722,-500.0,0.00026809,2]
[328443809,1717396233731,-1887.2102036,0.0002681,2]
[328443810,1717396233741,-7045.35204464,0.0002681,2]
[328443811,1717396233750,-4024.29763669,0.00027,2]
[328443812,1717396233760,-1300.0,0.00027,2]
[328443813,1717396233769,-1000.0,0.00027055,2]
[328443814,1717396233778,-1000.0,0.00027199,2]
[328443815,1717396233788,-325.02187282,0.00027297,2]
[328443816,1717396233797,-804.02580458,0.0002739,2]
[328443817,1717396233806,-530.70750224,0.00027397,4]
[328443818,1717396233815,-500.0,0.00027397,4]
[328443819,1717396233824,-412.5831558,0.00027397,4]
[328443820,1717396233833,-500.0,0.00027397,4]
[328443821,1717396233843,-500.0,0.00027397,4]
[328443822,1717396233853,-500.0,0.00027397,4]
[328443823,1717396233862,-500.0,0.00027397,4]
[328443824,1717396233871,-500.0,0.00027397,4]
[328443825,1717396233880,-216.93898652,0.00027397,4]
[328443826,1717396233889,-500.0,0.00027397,4]
[328443827,1717396233899,-500.0,0.00027397,4]
[328443828,1717396233908,-500.0,0.00027397,4]
[328443829,1717396233918,-341.5784501,0.00027397,4]
[328443830,1717396233927,-500.0,0.00027397,4]
[328443831,1717396233936,-500.0,0.00027397,4]
[328443832,1717396233945,-500.0,0.00027397,4]
[328443833,1717396233956,-827.28,0.00027397,4]
[328443834,1717396233966,-500.0,0.00027397,4]
[328443835,1717396233975,-500.0,0.00027397,4]
[328443836,1717396233984,-623.21,0.00027397,4]
[328443837,1717396233994,-500.0,0.00027397,4]
[328443838,1717396234003,-500.0,0.00027397,4]
[328443839,1717396234013,-20761.12,0.00027397,4]
[328443840,1717396234022,-500.0,0.00027397,4]
[328443841,1717396234031,-500.0,0.00027397,4]
[328443842,1717396234041,-500.0,0.00027397,4]
[328443843,1717396234050,-500.0,0.00027397,4]
[328443844,1717396234235,-500.0,0.00027397,4]
[328443845,1717396234245,-516.96816193,0.00027397,4]
[328443846,1717396234255,-1345.84,0.00027397,4]
[328443847,1717396234264,-500.0,0.00027397,4]
[328443848,1717396234274,-500.0,0.00027397,4]
[328443849,1717396234286,-500.0,0.00027397,4]
[328443850,1717396234295,-500.0,0.00027397,4]
[328443851,1717396234305,-500.0,0.00027397,4]
[328443852,1717396234315,-500.0,0.00027397,4]
[328443853,1717396234325,-500.0,0.00027397,4]
[328443854,1717396234335,-524.17,0.00027397,4]
[328443855,1717396234347,-500.0,0.00027397,4]
[328443856,1717396234356,-746.68,0.00027397,4]
[328443857,1717396234365,-500.0,0.00027397,4]
[328443858,1717396234375,-500.0,0.00027397,4]
[328443859,1717396234384,-500.0,0.00027397,4]
[328443860,1717396234393,-1346.27,0.00027397,4]
[328443861,1717396234403,-500.0,0.00027397,4]
[328443862,1717396234412,-502.15,0.00027397,4]
[328443863,1717396234421,-27.13703002,0.00027397,4]
[328443864,1717396234434,-472.86296998,0.00027397,4]
[328443865,1717396234443,-500.0,0.00027397,4]
[328443866,1717396234456,-500.0,0.00027397,4]
[328443867,1717396234465,-500.0,0.00027397,4]
[328443868,1717396234474,-403.89397296,0.00027397,4]
[328443869,1717396234483,-500.0,0.00027397,4]
[328443870,1717396234492,-519.2,0.00027397,4]
[328443871,1717396234501,-7500.0,0.00027571,2]
[328443872,1717396234510,-646.19,0.00027601,2]
[328443873,1717396234519,-500.0,0.00027671,4]
[328443874,1717396234527,-500.0,0.00027671,4]
[328443875,1717396234536,-529.49273568,0.00027671,4]
[328443876,1717396234546,-500.0,0.00027671,4]
[328443877,1717396234555,-425.4605497,0.00027671,4]
[328443878,1717396234564,-500.0,0.00027671,4]
[328443879,1717396234572,-500.0,0.00027671,4]
[328443880,1717396234582,-500.0,0.00027671,4]
[328443881,1717396234591,-500.0,0.00027671,4]
[328443882,1717396234600,-338.05685468,0.00027671,4]
[328443883,1717396234610,-537.41,0.00027671,4]
[328443884,1717396234619,-500.0,0.00027671,4]
[328443885,1717396234628,-827.28,0.00027671,4]
[328443886,1717396234637,-500.0,0.00027671,4]
[328443887,1717396234647,-286.34818633,0.00027671,4]
[328443888,1717396234656,-623.21,0.00027671,4]
[328443889,1717396234665,-500.0,0.00027671,4]
[328443890,1717396234674,-500.0,0.00027671,4]
[328443891,1717396234684,-20761.12,0.00027671,4]
[328443892,1717396234693,-500.0,0.00027671,4]
[328443893,1717396234709,-500.0,0.00027671,4]
[328443894,1717396234718,-500.0,0.00027671,4]
[328443895,1717396234728,-488.43411218,0.00027671,4]
[328443896,1717396234737,-500.0,0.00027671,4]
[328443897,1717396234746,-1345.84,0.00027671,4]
[328443898,1717396234755,-500.0,0.00027671,4]
[328443899,1717396234764,-607.74935609,0.00027671,4]
[328443900,1717396234773,-500.0,0.00027671,4]
[328443901,1717396234782,-500.0,0.00027671,4]
[328443902,1717396234793,-500.0,0.00027671,4]
[328443903,1717396234802,-500.0,0.00027671,4]
[328443904,1717396234811,-500.0,0.00027671,4]
[328443905,1717396234820,-524.17,0.00027671,4]
[328443906,1717396234829,-500.0,0.00027671,4]
[328443907,1717396234838,-746.68,0.00027671,4]
[328443908,1717396234848,-500.0,0.00027671,4]
[328443909,1717396234857,-500.0,0.00027671,4]
[328443910,1717396234866,-1346.27,0.00027671,4]
[328443911,1717396234875,-500.0,0.00027671,4]
[328443912,1717396234884,-502.15,0.00027671,4]
[328443913,1717396234894,-500.0,0.00027671,4]
[328443914,1717396234904,-500.0,0.00027671,4]
[328443915,1717396234914,-500.0,0.00027671,4]
[328443916,1717396234923,-500.0,0.00027671,4]
[328443917,1717396234932,-500.0,0.00027671,4]
[328443918,1717396234942,-500.0,0.00027945,4]
[328443919,1717396234954,-500.0,0.00027945,4]
[328443920,1717396234963,-500.0,0.00027945,4]
[328443921,1717396234972,-500.0,0.00027945,4]
[328443922,1717396234981,-500.0,0.00027945,4]
[328443923,1717396234991,-500.0,0.00027945,4]
[328443924,1717396235000,-500.0,0.00027945,4]
[328443925,1717396235010,-500.0,0.00027945,4]
[328443926,1717396235019,-827.28,0.00027945,4]
[328443927,1717396235028,-500.0,0.00027945,4]
[328443928,1717396235037,-623.21,0.00027945,4]
[328443929,1717396235046,-500.0,0.00027945,4]
[328443930,1717396235056,-265.19299785,0.00027945,4]
[328443931,1717396235065,-20761.12,0.00027945,4]
[328443932,1717396235074,-500.0,0.00027945,4]
[328443933,1717396235083,-500.0,0.00027945,4]
[328443934,1717396235093,-170.51,0.00027945,4]
[328443935,1717396235102,-409.48458292,0.00027945,4]
[328443936,1717396235112,-1345.84,0.00027945,4]
[328443937,1717396235122,-500.0,0.00027945,4]
[328443938,1717396235131,-500.0,0.00027945,4]
[328443939,1717396235141,-492.40873956,0.00027945,4]
[328443940,1717396235151,-380.24125508,0.00027945,4]
[328443941,1717396235160,-500.0,0.00027945,4]
[328443942,1717396235170,-500.0,0.00027945,4]
[328443943,1717396235179,-524.17,0.00027945,4]
[328443944,1717396235190,-500.0,0.00027945,4]
[328443945,1717396235201,-746.68,0.00027945,4]
[328443946,1717396235210,-500.0,0.00027945,4]
[328443947,1717396235219,-500.0,0.00027945,4]
[328443948,1717396235228,-1346.27,0.00027945,4]
[328443949,1717396235238,-500.0,0.00027945,4]
[328443950,1717396235247,-502.15,0.00027945,4]
[328443951,1717396235256,-500.0,0.00027945,4]
[328443952,1717396235265,-500.0,0.00027945,4]
[328443953,1717396235275,-500.0,0.00027945,4]
[328443954,1717396235288,-500.0,0.00027945,4]
[328443955,1717396235297,-500.0,0.00027945,4]
[328443956,1717396235306,-1887.2102036,0.00028088,2]
[328443957,1717396235315,-7045.35204464,0.00028088,2]
[328443958,1717396235326,-500.0,0.00028219,4]
[328443959,1717396235336,-500.0,0.00028219,4]
[328443960,1717396235345,-347.49376132,0.00028219,4]
[328443962,1717396235354,-500.0,0.00028219,4]
[328443964,1717396235365,-500.0,0.00028219,4]
[328443965,1717396235374,-500.0,0.00028219,4]
[328443966,1717396235383,-500.0,0.00028219,4]
[328443967,1717396235392,-500.0,0.00028219,4]
[328443968,1717396235401,-827.28,0.00028219,4]
[328443969,1717396235410,-560.9556685,0.00028219,4]
[328443970,1717396235419,-623.21,0.00028219,4]
[328443971,1717396235428,-500.0,0.00028219,4]
[328443972,1717396235437,-20761.12,0.00028219,4]
[328443973,1717396235447,-500.0,0.00028219,4]
[328443974,1717396235458,-500.0,0.00028219,4]
[328443975,1717396235468,-1345.84,0.00028219,4]
[328443976,1717396235478,-500.0,0.00028219,4]
[328443977,1717396235487,-500.0,0.00028219,4]
[328443978,1717396235497,-500.0,0.00028219,4]
[328443979,1717396235506,-500.0,0.00028219,4]
[328443980,1717396235515,-524.17,0.00028219,4]
[328443981,1717396235524,-500.0,0.00028219,4]
[328443982,1717396235534,-746.68,0.00028219,4]
[328443983,1717396235544,-500.0,0.00028219,4]
[328443984,1717396235554,-500.0,0.00028219,4]
[328443985,1717396235563,-1346.27,0.00028219,4]
[328443986,1717396235573,-500.0,0.00028219,4]
[328443987,1717396235582,-502.15,0.00028219,4]
[328443988,1717396235591,-500.0,0.00028219,4]
[328443989,1717396235600,-500.0,0.00028219,4]
[328443990,1717396235610,-500.0,0.00028219,4]
[328443991,1717396235619,-500.0,0.00028219,4]
[328443992,1717396235628,-500.0,0.00028219,4]
[328443993,1717396235638,-493.84917495,0.00028403,2]
[328443994,1717396235647,-500.0,0.00028493,4]
[328443995,1717396235656,-497.9995,0.00028493,4]
[328443996,1717396235665,-540.57719169,0.00028493,4]
[328443997,1717396235675,-500.0,0.00028493,4]
[328443998,1717396235684,-500.0,0.00028493,4]
[328443999,1717396235693,-500.0,0.00028493,4]
[328444000,1717396235704,-500.0,0.00028493,4]
[328444001,1717396235714,-827.28,0.00028493,4]
[328444002,1717396235722,-623.21,0.00028493,4]
[328444003,1717396235732,-500.0,0.00028493,4]
[328444004,1717396235741,-20761.12,0.00028493,4]
[328444005,1717396235751,-500.0,0.00028493,4]
[328444006,1717396235761,-500.0,0.00028493,4]
[328444007,1717396235771,-1345.84,0.00028493,4]
[328444008,1717396235780,-500.0,0.00028493,4]
[328444009,1717396235789,-500.0,0.00028493,4]
[328444010,1717396235798,-500.0,0.00028493,4]
[328444011,1717396235808,-282.24567796,0.00028493,4]
[328444012,1717396235817,-524.17,0.00028493,4]
[328444013,1717396235826,-500.0,0.00028493,4]
[328444014,1717396235836,-746.68,0.00028493,4]
[328444015,1717396235845,-500.0,0.00028493,4]
[328444016,1717396235855,-500.0,0.00028493,4]
[328444017,1717396235864,-1346.27,0.00028493,4]
[328444018,1717396235873,-500.0,0.00028493,4]
[328444019,1717396235883,-502.15,0.00028493,4]
[328444020,1717396235892,-500.0,0.00028493,4]
[328444021,1717396235901,-188.86111096,0.00028493,4]
[328444022,1717396235910,-500.0,0.00028493,4]
[328444023,1717396235919,-500.0,0.00028493,4]
[328444024,1717396235928,-187.30380479,0.00028493,4]
[328444025,1717396235937,-937.66,0.00028493,2]
[328444026,1717396235946,-416.78,0.00028493,2]
[328444027,1717396235958,-500.0,0.00028767,4]
[328444028,1717396235968,-500.0,0.00028767,4]
[328444029,1717396235977,-500.0,0.00028767,4]
[328444030,1717396235986,-500.0,0.00028767,4]
[328444031,1717396235995,-827.28,0.00028767,4]
[328444032,1717396236004,-623.21,0.00028767,4]
[328444033,1717396236013,-20761.12,0.00028767,4]
[328444034,1717396236022,-500.0,0.00028767,4]
[328444035,1717396236031,-500.0,0.00028767,4]
[328444036,1717396236041,-1345.84,0.00028767,4]
[328444037,1717396236050,-500.0,0.00028767,4]
[328444038,1717396236060,-500.0,0.00028767,4]
[328444039,1717396236069,-500.0,0.00028767,4]
[328444040,1717396236078,-524.17,0.00028767,4]
[328444041,1717396236086,-500.0,0.00028767,4]
[328444042,1717396236096,-746.68,0.00028767,4]
[328444043,1717396236105,-500.0,0.00028767,4]
[328444044,1717396236114,-355.17092731,0.00028767,4]
[328444045,1717396236123,-1346.27,0.00028767,4]
[328444046,1717396236132,-500.0,0.00028767,4]
[328444047,1717396236141,-502.15,0.00028767,4]
[328444048,1717396236150,-500.0,0.00028767,4]
[328444049,1717396236160,-500.0,0.00028767,4]
[328444050,1717396236169,-500.0,0.00028767,4]
[328444051,1717396236178,-325.0218728,0.00028773,2]
[328444052,1717396236188,-2196.0,0.000288,3]
[328444053,1717396236199,-1350.0,0.00029,2]
[328444054,1717396236208,-341.35033652,0.00029041,4]
[328444055,1717396236217,-500.0,0.00029041,4]
[328444056,1717396236227,-500.0,0.00029041,4]
[328444057,1717396236237,-500.0,0.00029041,4]
[328444058,1717396236247,-827.28,0.00029041,4]
[328444059,1717396236256,-623.21,0.00029041,4]
[328444060,1717396236266,-13034.18249099,0.00029041,4]
[328444061,1717396236375,-871.5527439,0.00029041,4]
[328444062,1717396236386,-1382.79356823,0.00029041,4]
[328444093,1717396240009,-5472.59119688,0.00029041,4]
[328444094,1717396240019,-500.0,0.00029041,4]
[328444095,1717396240029,-500.0,0.00029041,4]
[328444096,1717396240038,-1345.84,0.00029041,4]
[328444097,1717396240048,-500.0,0.00029041,4]
[328444098,1717396240058,-500.0,0.00029041,4]
[328444099,1717396240068,-502.15387376,0.00029041,4]
[328444100,1717396240077,-524.17,0.00029041,4]
[328444101,1717396240087,-500.0,0.00029041,4]
[328444102,1717396240097,-746.68,0.00029041,4]
[328444103,1717396240107,-500.0,0.00029041,4]
[328444104,1717396240118,-1346.27,0.00029041,4]
[328444105,1717396240127,-500.0,0.00029041,4]
[328444106,1717396240137,-502.15,0.00029041,4]
[328444107,1717396240147,-356.31784024,0.00029041,4]
[328444108,1717396240157,-500.0,0.00029041,4]
[328444109,1717396240167,-574.14444463,0.00029041,4]
[328444110,1717396240176,-1939.1138,0.0002908,2]
[328444112,1717396240187,-150.0,0.00029178,2]
[328444113,1717396240197,-151.75,0.00029178,2]
[328444114,1717396240209,-422.0,0.00029178,2]
[328444115,1717396240219,-150.0,0.00029178,2]
[328444116,1717396240229,-150.0,0.00029178,2]
[328444117,1717396240239,-525.57,0.00029178,2]
[328444118,1717396240250,-352.88,0.00029178,2]
[328444119,1717396240260,-529.23,0.00029178,2]
[328444120,1717396240270,-525.57,0.00029178,2]
[328444121,1717396240282,-525.57,0.00029178,2]
[328444122,1717396240294,-375.9,0.00029178,2]
[328444123,1717396240304,-500.0,0.00029315,4]
[328444124,1717396240314,-500.0,0.00029315,4]
[328444125,1717396240325,-437.58655991,0.00029315,4]
[328444126,1717396240335,-827.28,0.00029315,4]
[328444127,1717396240345,-623.21,0.00029315,4]
[328444128,1717396240355,-20485.06875155,0.00029315,4]
[328444133,1717396240485,-276.05124845,0.00029315,4]
[328444135,1717396240495,-69.31927233,0.00029315,4]
[328444137,1717396240507,-430.68072767,0.00029315,4]
[328444139,1717396240517,-500.0,0.00029315,4]
[328444142,1717396240527,-1345.84,0.00029315,4]
[328444145,1717396240537,-272.05424567,0.00029315,4]
[328444148,1717396240546,-500.0,0.00029315,4]
[328444151,1717396240556,-524.17,0.00029315,4]
[328444154,1717396240565,-500.0,0.00029315,4]
[328444156,1717396240574,-746.68,0.00029315,4]
[328444159,1717396240584,-500.0,0.00029315,4]
[328444162,1717396240594,-1346.27,0.00029315,4]
[328444164,1717396240604,-500.0,0.00029315,4]
[328444167,1717396240614,-502.15,0.00029315,4]
[328444170,1717396240624,-500.0,0.00029315,4]
[328444173,1717396240634,-415.90661353,0.00029366,2]
[328444176,1717396240647,-778.63202683,0.00029366,2]
[328444179,1717396240667,-692.67156324,0.00029366,2]
[328444181,1717396240677,-1198.49843676,0.00029366,2]
[328444183,1717396240689,-439.45564214,0.00029366,2]
[328444223,1717396241235,-5407.39796574,0.00029366,2]
[328444224,1717396241244,-795.28,0.00029369,2]
[328444226,1717396241255,-416.78,0.00029452,2]
[328444227,1717396241264,-416.78,0.00029452,2]
[328444228,1717396241274,-412.82,0.00029452,2]
[328444229,1717396241285,-152.94,0.00029579,2]
[328444230,1717396241295,-500.0,0.00029589,4]
[328444231,1717396241304,-500.0,0.00029589,4]
[328444232,1717396241314,-827.28,0.00029589,4]
[328444233,1717396241325,-623.21,0.00029589,4]
[328444234,1717396241335,-20761.12,0.00029589,4]
[328444235,1717396241345,-500.0,0.00029589,4]
[328444236,1717396241355,-500.0,0.00029589,4]
[328444237,1717396241366,-1345.84,0.00029589,4]
[328444238,1717396241376,-500.0,0.00029589,4]
[328444239,1717396241386,-524.17,0.00029589,4]
[328444240,1717396241396,-500.0,0.00029589,4]
[328444241,1717396241408,-746.68,0.00029589,4]
[328444242,1717396241418,-500.0,0.00029589,4]
[328444243,1717396241427,-1346.27,0.00029589,4]
[328444244,1717396241437,-500.0,0.00029589,4]
[328444245,1717396241446,-502.15,0.00029589,4]
[328444246,1717396241458,-500.0,0.00029589,4]
[328444247,1717396241467,-446.0,0.00029754,2]
[328444248,1717396241475,-151.063,0.00029754,2]
[328444249,1717396241485,-808.0,0.00029754,2]
[328444250,1717396241496,-165.0,0.00029754,2]
[328444251,1717396241505,-2402.0,0.00029754,2]
[328444252,1717396241515,-1304.0,0.00029754,2]
[328444253,1717396241527,-150.0,0.00029754,2]
[328444254,1717396241536,-216.0,0.00029754,2]
[328444255,1717396241546,-3171.0,0.00029754,2]
[328444256,1717396241558,-1064.0,0.00029754,2]
[328444257,1717396241567,-977.0,0.00029754,2]
[328444258,1717396241577,-289.0,0.00029754,2]
[328444259,1717396241586,-211.0,0.00029754,2]
[328444260,1717396241595,-5774.0,0.00029754,2]
[328444261,1717396241605,-410.0,0.00029754,2]
[328444262,1717396241614,-5147.0,0.00029754,2]
[328444263,1717396241624,-1000.0,0.00029761,2]
[328444264,1717396241634,-1202.31874789,0.00029808,2]
[328444265,1717396241643,-500.0,0.00029863,4]
[328444266,1717396241652,-500.0,0.00029863,4]
[328444267,1717396241662,-827.28,0.00029863,4]
[328444268,1717396241671,-623.21,0.00029863,4]
[328444269,1717396241680,-20761.12,0.00029863,4]
[328444270,1717396241691,-268.11225901,0.00029863,4]
[328444271,1717396241700,-500.0,0.00029863,4]
[328444272,1717396241713,-1345.84,0.00029863,4]
[328444273,1717396241722,-500.0,0.00029863,4]
[328444274,1717396241731,-524.17,0.00029863,4]
[328444275,1717396241740,-500.0,0.00029863,4]
[328444276,1717396241749,-746.68,0.00029863,4]
[328444277,1717396241758,-500.0,0.00029863,4]
[328444278,1717396241767,-1346.27,0.00029863,4]
[328444279,1717396241777,-500.0,0.00029863,4]
[328444280,1717396241786,-502.15,0.00029863,4]
[328444281,1717396241795,-500.0,0.00029863,4]
[328444282,1717396241804,-646.19,0.00029865,2]
[328444283,1717396241814,-431191.98514765,0.00029888,2]
[328444284,1717396242368,-339.76718409,0.00029888,2]
[328444309,1717396245130,-497.08063482,0.00027397,4]
[328444311,1717396245140,-37998.0,0.00029754,2]
[328444313,1717396245150,-20303.72476582,0.00029888,2]
[328444319,1717396245354,-2308.04805526,0.00029888,2]
[328444320,1717396245369,-1881.315,0.00029888,2]
[328444321,1717396245383,-5608.23552904,0.00029888,2]
[328444322,1717396245395,-8027.89739944,0.00029888,2]
[328444323,1717396245405,-3383.29470642,0.00029888,2]
[328444324,1717396245416,-4355.10877995,0.00029888,2]
[328444325,1717396245428,-3222.32787498,0.00029888,2]
[328444326,1717396245665,-836.60016149,0.00029888,2]
[328444327,1717396245677,-5884.47651373,0.00029888,2]
[328444340,1717396249984,-202.6923685,0.00026809,2]
[328444341,1717396249993,-500.0,0.00027397,4]
[328444342,1717396250003,-500.0,0.00027397,4]
[328444343,1717396250013,-8181.59461013,0.00029888,2]
[328444344,1717396250023,-2004.73823716,0.00029899,2]
[328444345,1717396250033,-226.51830624,0.00029899,5]
[328444346,1717396250042,-500.0,0.000299,2]
[328444347,1717396250052,-1258.70765526,0.000299,2]
[328444348,1717396250062,-176.32029517,0.000299,2]
[328444349,1717396250071,-827.08,0.0002999,3]
[328444350,1717396250081,-500.0,0.0002999,2]
[328444351,1717396250090,-750.0,0.0002999,2]
[328444352,1717396250099,-152.94,0.0002999,2]
[328444353,1717396250108,-163.28625452,0.00029999,4]
[328444354,1717396250118,-500.0,0.00029999,4]
[328444355,1717396250127,-155.0,0.00029999,4]
[328444356,1717396250137,-7672.00000001,0.00029999,2]
[328444357,1717396250147,-215.0,0.0003,5]
[328444358,1717396250157,-30000.0,0.0003,2]
[328444359,1717396250167,-377.5329593,0.0003,2]
[328444360,1717396250176,-349.29233606,0.0003,2]
[328444361,1717396250186,-1712.42439369,0.0003,2]
[328444362,1717396250196,-99418.29686457,0.0003,2]
[328444363,1717396250362,-189347.01173963,0.0003,2]
[328444364,1717396250373,-20000.0,0.0003,7]
[328444365,1717396250383,-15124.3947929,0.0003,5]
[328444366,1717396250392,-500.0,0.0003,2]
[328444367,1717396250401,-500.0,0.0003,2]
[328444368,1717396250410,-500.0,0.0003,3]
[328444369,1717396250419,-500.0,0.0003,3]
[328444370,1717396250428,-500.0,0.0003,3]
[328444371,1717396250437,-500.0,0.0003,3]
[328444372,1717396250446,-209.03,0.0003,3]
[328444373,1717396250455,-687.18216268,0.0003,4]
[328444374,1717396250465,-500.0,0.0003,2]
[328444375,1717396250473,-750.0,0.0003,2]
[328444376,1717396250481,-401.4087958,0.0003,2]
[328444377,1717396250490,-5000.0,0.0003,4]
[328444378,1717396250500,-2181.29187519,0.0003,10]
[328444379,1717396250509,-2349.79329018,0.0003,4]
[328444380,1717396250518,-5703.59628396,0.0003,2]
[328444381,1717396250526,-8363.13686386,0.0003,4]
[328444382,1717396250535,-153.69,0.0003,2]
[328444383,1717396250544,-150.0,0.0003,2]
[328444384,1717396250554,-150.0,0.0003,2]
[328444385,1717396250563,-493.84917495,0.00030002,2]
[328444386,1717396250573,-162.16546389,0.00030036,2]
[328444387,1717396250582,-500.0,0.00030136,4]
[328444388,1717396250591,-500.0,0.00030136,4]
[328444389,1717396250600,-827.28,0.00030136,4]
[328444390,1717396250609,-623.21,0.00030136,4]
[328444391,1717396250619,-20761.12,0.00030136,4]
[328444392,1717396250628,-500.0,0.00030136,4]
[328444393,1717396250637,-1345.84,0.00030136,4]
[328444394,1717396250646,-500.0,0.00030136,4]
[328444395,1717396250655,-524.17,0.00030136,4]
[328444396,1717396250664,-746.68,0.00030136,4]
[328444397,1717396250673,-500.0,0.00030136,4]
[328444398,1717396250682,-1346.27,0.00030136,4]
[328444399,1717396250691,-500.0,0.00030136,4]
[328444400,1717396250700,-502.15,0.00030136,4]
[328444401,1717396250710,-500.0,0.00030136,4]
[328444402,1717396250719,-500.0,0.00030137,2]
[328444403,1717396250728,-500.0,0.00030137,2]
[328444404,1717396250737,-500.0,0.00030137,2]
[328444405,1717396250746,-500.0,0.00030137,2]
[328444406,1717396250755,-500.0,0.00030137,2]
[328444407,1717396250764,-607.95723376,0.00030137,2]
[328444408,1717396250773,-500.0,0.00030137,2]
[328444409,1717396250782,-500.0,0.00030137,2]
[328444410,1717396250791,-167.71118809,0.00030173,2]
[328444411,1717396250800,-1258.70765526,0.000302,2]
[328444412,1717396250809,-325.0218728,0.00030249,2]
[328444413,1717396250818,-161.15735837,0.0003029,2]
[328444414,1717396250827,-296.86,0.0003031,2]
[328444415,1717396250836,-500.0,0.0003035,2]
[328444416,1717396250846,-500.0,0.00030351,2]
[328444417,1717396250855,-200.0,0.00030351,2]
[328444418,1717396250864,-500.0,0.0003041,4]
[328444419,1717396250873,-500.0,0.0003041,4]
[328444420,1717396250882,-827.28,0.0003041,4]
[328444421,1717396250892,-623.21,0.0003041,4]
[328444422,1717396250901,-20761.12,0.0003041,4]
[328444423,1717396250910,-500.0,0.0003041,4]
[328444424,1717396250919,-1345.84,0.0003041,4]